[Event "Titled Tuesday Blitz December 06 Early 2022"]
[White "Kyaw Lay Htaik"]
[Black "Moksh Amit Doshi"]
[WhiteFideId "13002007"]
[BlackFideId "25064967"]
[WhiteElo "2261"]
[BlackElo "2297"]
[Result "0-1"]
[Round "10"]
[TimeControl "180+1"]
[Date "2022.12.07"]
[WhiteClock "0:00:19"]
[BlackClock "0:01:18"]

1. d4 {[%clk 0:02:59]}  Nf6 {[%clk 0:02:57]} 2. Nf3 {[%clk 0:02:59]}  g6 {[%clk 0:02:49]} 3. Bf4 {[%clk 0:02:59]}  Bg7 {[%clk 0:02:47]} 4. Nc3 {[%clk 0:02:58]}  d5 {[%clk 0:02:43]} 5. e3 {[%clk 0:02:48]}  O-O {[%clk 0:02:42]} 6. h3 {[%clk 0:02:44]}  c5 {[%clk 0:02:34]} 7. Be2 {[%clk 0:02:37]}  Qb6 {[%clk 0:02:14]} 8. Na4 {[%clk 0:02:21]}  Qa5+ {[%clk 0:02:10]} 9. c3 {[%clk 0:02:01]}  c4 {[%clk 0:02:10]} 10. O-O {[%clk 0:01:53]}  Ne4 {[%clk 0:02:06]} 11. b3 {[%clk 0:01:41]}  b5 {[%clk 0:02:04]} 12. Nc5 {[%clk 0:01:38]}  Nxc3 {[%clk 0:01:55]} 13. Qd2 {[%clk 0:01:37]}  Nd7 {[%clk 0:01:52]} 14. Nxd7 {[%clk 0:01:30]}  Bxd7 {[%clk 0:01:53]} 15. Rfc1 {[%clk 0:01:21]}  Nxe2+ {[%clk 0:01:53]} 16. Qxe2 {[%clk 0:01:22]}  Bf5 {[%clk 0:01:50]} 17. a4 {[%clk 0:01:05]}  Bd3 {[%clk 0:01:47]} 18. Qe1 {[%clk 0:00:58]}  b4 {[%clk 0:01:39]} 19. Ne5 {[%clk 0:00:42]}  Bxe5 {[%clk 0:01:29]} 20. Bxe5 {[%clk 0:00:42]}  cxb3 {[%clk 0:01:26]} 21. Qd2 {[%clk 0:00:36]}  Bc2 {[%clk 0:01:25]} 22. e4 {[%clk 0:00:24]}  dxe4 {[%clk 0:01:20]} 23. Qh6 {[%clk 0:00:20]}  f6 {[%clk 0:01:20]} 24. Bf4 {[%clk 0:00:19]}  b2 {[%clk 0:01:18]} 0-1


[Site "https://www.chess.com"]

[Event "Titled Tuesday Blitz December 06 Early 2022"]
[White "Larina, Maria"]
[Black "Fernandez Hernandez, Gerardo"]
[WhiteFideId "24113182"]
[BlackFideId "2207400"]
[WhiteElo "1848"]
[BlackElo "2178"]
[Result "0-1"]
[Round "10"]
[TimeControl "180+1"]
[Date "2022.12.07"]
[WhiteClock "0:00:00"]
[BlackClock "0:00:05"]

1. e4 {[%clk 0:01:21]}  e6 {[%clk 0:02:56]} 2. d4 {[%clk 0:01:20]}  d5 {[%clk 0:02:54]} 3. Nc3 {[%clk 0:01:17]}  Nc6 {[%clk 0:02:54]} 4. e5 {[%clk 0:01:13]}  f6 {[%clk 0:02:54]} 5. f4 {[%clk 0:01:12]}  fxe5 {[%clk 0:02:54]} 6. fxe5 {[%clk 0:01:12]}  Qh4+ {[%clk 0:02:54]} 7. g3 {[%clk 0:01:12]}  Qxd4 {[%clk 0:02:54]} 8. Qxd4 {[%clk 0:01:10]}  Nxd4 {[%clk 0:02:55]} 9. Bd3 {[%clk 0:01:10]}  Bd7 {[%clk 0:02:44]} 10. Be3 {[%clk 0:01:07]}  Nc6 {[%clk 0:02:42]} 11. Bf4 {[%clk 0:01:05]}  Be7 {[%clk 0:02:27]} 12. O-O-O {[%clk 0:01:04]}  g5 {[%clk 0:02:24]} 13. Be3 {[%clk 0:01:03]}  d4 {[%clk 0:02:17]} 14. Nb5 {[%clk 0:01:01]}  dxe3 {[%clk 0:02:16]} 15. Nxc7+ {[%clk 0:01:00]}  Kd8 {[%clk 0:02:16]} 16. Nxa8 {[%clk 0:01:00]}  Kc8 {[%clk 0:02:08]} 17. Ne2 {[%clk 0:00:59]}  Nh6 {[%clk 0:01:59]} 18. Rhf1 {[%clk 0:00:50]}  Nxe5 {[%clk 0:01:56]} 19. Be4 {[%clk 0:00:48]}  Bc6 {[%clk 0:01:24]} 20. Bxc6 {[%clk 0:00:40]}  bxc6 {[%clk 0:01:15]} 21. Nd4 {[%clk 0:00:40]}  Kb7 {[%clk 0:01:10]} 22. Rde1 {[%clk 0:00:39]}  Kxa8 {[%clk 0:00:33]} 23. Rxe3 {[%clk 0:00:38]}  Bd6 {[%clk 0:00:27]} 24. Nxe6 {[%clk 0:00:37]}  Nhg4 {[%clk 0:00:24]} 25. Re2 {[%clk 0:00:37]}  Re8 {[%clk 0:00:20]} 26. Ng7 {[%clk 0:00:28]}  Re7 {[%clk 0:00:18]} 27. Nf5 {[%clk 0:00:28]}  Rf7 {[%clk 0:00:19]} 28. h3 {[%clk 0:00:25]}  Nh6 {[%clk 0:00:12]} 29. g4 {[%clk 0:00:25]}  Nxf5 {[%clk 0:00:12]} 30. gxf5 {[%clk 0:00:26]}  Kb7 {[%clk 0:00:11]} 31. Rd1 {[%clk 0:00:26]}  Kc7 {[%clk 0:00:10]} 32. Red2 {[%clk 0:00:25]}  Bc5 {[%clk 0:00:08]} 33. Re2 {[%clk 0:00:24]}  Bd6 {[%clk 0:00:07]} 34. Red2 {[%clk 0:00:24]}  Bc5 {[%clk 0:00:07]} 35. c3 {[%clk 0:00:24]}  Rxf5 {[%clk 0:00:07]} 36. Re2 {[%clk 0:00:23]}  h5 {[%clk 0:00:05]} 37. Rde1 {[%clk 0:00:23]}  Bd6 {[%clk 0:00:05]} 38. Kc2 {[%clk 0:00:23]}  Rf3 {[%clk 0:00:03]} 39. h4 {[%clk 0:00:22]}  g4 {[%clk 0:00:02]} 40. b4 {[%clk 0:00:21]}  Nc4 {[%clk 0:00:01]} 41. Re6 {[%clk 0:00:19]}  Rf7 {[%clk 0:00:02]} 42. Rh6 {[%clk 0:00:18]}  Rg7 {[%clk 0:00:02]} 43. Rxh5 {[%clk 0:00:18]}  g3 {[%clk 0:00:03]} 44. Rg1 {[%clk 0:00:19]}  Ne3+ {[%clk 0:00:02]} 45. Kd3 {[%clk 0:00:18]}  g2 {[%clk 0:00:03]} 46. Rg5 {[%clk 0:00:18]}  Rxg5 {[%clk 0:00:03]} 47. hxg5 {[%clk 0:00:19]}  Nf5 {[%clk 0:00:03]} 48. Ke4 {[%clk 0:00:19]}  Nh4 {[%clk 0:00:03]} 49. g6 {[%clk 0:00:15]}  Nxg6 {[%clk 0:00:02]} 50. Rxg2 {[%clk 0:00:14]}  Nf4 {[%clk 0:00:02]} 51. Rg7+ {[%clk 0:00:13]}  Kb6 {[%clk 0:00:02]} 52. Kf5 {[%clk 0:00:13]}  Nd3 {[%clk 0:00:02]} 53. Ke6 {[%clk 0:00:13]}  Bc7 {[%clk 0:00:02]} 54. c4 {[%clk 0:00:12]}  Nxb4 {[%clk 0:00:02]} 55. Rd7 {[%clk 0:00:11]}  c5 {[%clk 0:00:01]} 56. a3 {[%clk 0:00:10]}  Nc6 {[%clk 0:00:01]} 57. a4 {[%clk 0:00:08]}  Nd4+ {[%clk 0:00:02]} 58. Kf7 {[%clk 0:00:07]}  a6 {[%clk 0:00:03]} 59. a5+ {[%clk 0:00:05]}  Kc6 {[%clk 0:00:02]} 60. Re7 {[%clk 0:00:04]}  Nb3 {[%clk 0:00:03]} 61. Re6+ {[%clk 0:00:04]}  Bd6 {[%clk 0:00:03]} 62. Ke8 {[%clk 0:00:03]}  Nxa5 {[%clk 0:00:04]} 63. Kd8 {[%clk 0:00:03]}  Nxc4 {[%clk 0:00:04]} 64. Kc8 {[%clk 0:00:03]}  a5 {[%clk 0:00:04]} 65. Re2 {[%clk 0:00:02]}  a4 {[%clk 0:00:04]} 66. Ra2 {[%clk 0:00:02]}  a3 {[%clk 0:00:05]} 67. Kd8 {[%clk 0:00:00]}  Kb5 {[%clk 0:00:05]} 0-1


[Site "https://www.chess.com"]

[Event "Titled Tuesday Blitz December 06 Early 2022"]
[White "Lauridsen, Jesper Morch"]
[Black "Clawitter, Craig"]
[WhiteFideId "1401890"]
[BlackFideId "2023105"]
[WhiteElo "2257"]
[BlackElo "2188"]
[Result "0-1"]
[Round "10"]
[TimeControl "180+1"]
[Date "2022.12.07"]
[WhiteClock "0:00:14"]
[BlackClock "0:00:08"]

1. e4 {[%clk 0:02:49]}  e6 {[%clk 0:03:00]} 2. d4 {[%clk 0:02:46]}  d5 {[%clk 0:03:00]} 3. e5 {[%clk 0:02:47]}  c5 {[%clk 0:03:00]} 4. c3 {[%clk 0:02:47]}  Qb6 {[%clk 0:03:00]} 5. Nf3 {[%clk 0:02:48]}  Nc6 {[%clk 0:03:01]} 6. Bd3 {[%clk 0:02:47]}  cxd4 {[%clk 0:03:00]} 7. O-O {[%clk 0:02:47]}  Bd7 {[%clk 0:03:00]} 8. h4 {[%clk 0:02:42]}  Nge7 {[%clk 0:02:54]} 9. Re1 {[%clk 0:02:41]}  Rc8 {[%clk 0:02:23]} 10. h5 {[%clk 0:02:29]}  h6 {[%clk 0:02:23]} 11. Nbd2 {[%clk 0:02:22]}  dxc3 {[%clk 0:02:23]} 12. bxc3 {[%clk 0:02:21]}  Na5 {[%clk 0:02:17]} 13. Rb1 {[%clk 0:02:20]}  Qc7 {[%clk 0:02:11]} 14. Ba3 {[%clk 0:02:07]}  Nec6 {[%clk 0:01:45]} 15. c4 {[%clk 0:01:54]}  Bxa3 {[%clk 0:01:42]} 16. cxd5 {[%clk 0:01:52]}  exd5 {[%clk 0:01:42]} 17. e6 {[%clk 0:01:48]}  Bxe6 {[%clk 0:01:37]} 18. Rxe6+ {[%clk 0:01:48]}  fxe6 {[%clk 0:01:38]} 19. Bg6+ {[%clk 0:01:49]}  Ke7 {[%clk 0:01:30]} 20. Qa4 {[%clk 0:01:40]}  Bd6 {[%clk 0:01:22]} 21. Qh4+ {[%clk 0:01:39]}  Kf8 {[%clk 0:01:18]} 22. Re1 {[%clk 0:01:39]}  Qe7 {[%clk 0:01:09]} 23. Qg4 {[%clk 0:01:34]}  Nd8 {[%clk 0:01:09]} 24. Nh4 {[%clk 0:01:33]}  Nc4 {[%clk 0:00:57]} 25. Bf5 {[%clk 0:01:04]}  exf5 {[%clk 0:00:35]} 26. Qxf5+ {[%clk 0:00:58]}  Qf6 {[%clk 0:00:31]} 27. Ng6+ {[%clk 0:00:47]}  Kg8 {[%clk 0:00:30]} 28. Qxd5+ {[%clk 0:00:44]}  Nf7 {[%clk 0:00:20]} 29. Nxc4 {[%clk 0:00:43]}  Qc3 {[%clk 0:00:09]} 30. Re4 {[%clk 0:00:18]}  Qc1+ {[%clk 0:00:07]} 31. Qd1 {[%clk 0:00:14]}  Qxd1+ {[%clk 0:00:08]} 32. Re1 {[%clk 0:00:14]}  Qxe1# {[%clk 0:00:08]} 0-1


[Site "https://www.chess.com"]

[Event "Titled Tuesday Blitz December 06 Early 2022"]
[White "Leve, Nitai"]
[Black "Oro, Faustino"]
[WhiteFideId "2006898"]
[BlackFideId "20000197"]
[WhiteElo "2144"]
[BlackElo "1984"]
[Result "1-0"]
[Round "10"]
[TimeControl "180+1"]
[Date "2022.12.07"]
[WhiteClock "0:00:04"]
[BlackClock "0:00:02"]

1. e4 {[%clk 0:02:46]}  c5 {[%clk 0:02:55]} 2. Nf3 {[%clk 0:02:46]}  d6 {[%clk 0:02:55]} 3. d4 {[%clk 0:02:47]}  cxd4 {[%clk 0:02:56]} 4. Qxd4 {[%clk 0:02:47]}  Nc6 {[%clk 0:02:55]} 5. Bb5 {[%clk 0:02:47]}  Bd7 {[%clk 0:02:55]} 6. Bxc6 {[%clk 0:02:48]}  Bxc6 {[%clk 0:02:56]} 7. Nc3 {[%clk 0:02:48]}  Nf6 {[%clk 0:02:55]} 8. Bg5 {[%clk 0:02:49]}  e5 {[%clk 0:02:52]} 9. Qd3 {[%clk 0:02:48]}  Be7 {[%clk 0:02:52]} 10. O-O-O {[%clk 0:02:48]}  Ng4 {[%clk 0:02:04]} 11. Bxe7 {[%clk 0:02:43]}  Qxe7 {[%clk 0:02:05]} 12. Qe2 {[%clk 0:02:40]}  Nf6 {[%clk 0:02:03]} 13. g4 {[%clk 0:02:21]}  O-O {[%clk 0:01:54]} 14. g5 {[%clk 0:02:18]}  Nd7 {[%clk 0:01:54]} 15. h4 {[%clk 0:02:17]}  Nc5 {[%clk 0:01:52]} 16. Nd5 {[%clk 0:02:12]}  Bxd5 {[%clk 0:01:40]} 17. exd5 {[%clk 0:02:13]}  f5 {[%clk 0:01:30]} 18. Kb1 {[%clk 0:02:04]}  Rab8 {[%clk 0:01:26]} 19. h5 {[%clk 0:02:05]}  b5 {[%clk 0:01:26]} 20. Nd4 {[%clk 0:01:29]}  Qd7 {[%clk 0:01:15]} 21. Nc6 {[%clk 0:01:25]}  Rb6 {[%clk 0:01:15]} 22. f4 {[%clk 0:01:14]}  e4 {[%clk 0:01:10]} 23. Qe3 {[%clk 0:01:12]}  Re8 {[%clk 0:00:51]} 24. h6 {[%clk 0:01:09]}  g6 {[%clk 0:00:50]} 25. Qc3 {[%clk 0:01:03]}  Qf7 {[%clk 0:00:30]} 26. b3 {[%clk 0:00:37]}  Rb7 {[%clk 0:00:29]} 27. Rd4 {[%clk 0:00:27]}  Rc7 {[%clk 0:00:19]} 28. Qb2 {[%clk 0:00:25]}  e3 {[%clk 0:00:17]} 29. Re1 {[%clk 0:00:24]}  e2 {[%clk 0:00:15]} 30. Rd2 {[%clk 0:00:22]}  Ne4 {[%clk 0:00:12]} 31. Rdxe2 {[%clk 0:00:15]}  Qxd5 {[%clk 0:00:12]} 32. Nb4 {[%clk 0:00:13]}  Qc5 {[%clk 0:00:10]} 33. Nd3 {[%clk 0:00:12]}  Qd5 {[%clk 0:00:07]} 34. Ka1 {[%clk 0:00:10]}  a5 {[%clk 0:00:06]} 35. Nf2 {[%clk 0:00:09]}  Ree7 {[%clk 0:00:05]} 36. Nxe4 {[%clk 0:00:09]}  fxe4 {[%clk 0:00:05]} 37. c4 {[%clk 0:00:07]}  bxc4 {[%clk 0:00:05]} 38. bxc4 {[%clk 0:00:08]}  Qxc4 {[%clk 0:00:05]} 39. Re3 {[%clk 0:00:05]}  d5 {[%clk 0:00:04]} 40. Qf6 {[%clk 0:00:04]}  Re8 {[%clk 0:00:02]} 41. Rb3 {[%clk 0:00:03]}  Qc5 {[%clk 0:00:01]} 42. Reb1 {[%clk 0:00:03]}  Rf7 {[%clk 0:00:02]} 43. Qb2 {[%clk 0:00:02]}  Ref8 {[%clk 0:00:02]} 44. Rb8 {[%clk 0:00:02]}  Qe7 {[%clk 0:00:02]} 45. Rb7 {[%clk 0:00:02]}  Qe6 {[%clk 0:00:02]} 46. Rb6 {[%clk 0:00:01]}  Qe7 {[%clk 0:00:02]} 47. Rh1 {[%clk 0:00:02]}  d4 {[%clk 0:00:02]} 48. Qxd4 {[%clk 0:00:02]}  Rxf4 {[%clk 0:00:03]} 49. Rxg6+ {[%clk 0:00:02]}  hxg6 {[%clk 0:00:02]} 50. h7+ {[%clk 0:00:03]}  Qxh7 {[%clk 0:00:03]} 51. Rxh7 {[%clk 0:00:04]}  Kxh7 {[%clk 0:00:03]} 52. Kb2 {[%clk 0:00:02]}  R8f7 {[%clk 0:00:04]} 53. Kc3 {[%clk 0:00:02]}  e3 {[%clk 0:00:03]} 54. Qd1 {[%clk 0:00:03]}  Rf3 {[%clk 0:00:03]} 55. Qh1+ {[%clk 0:00:03]}  Kg8 {[%clk 0:00:03]} 56. Qh6 {[%clk 0:00:03]}  Rg7 {[%clk 0:00:01]} 57. Qh1 {[%clk 0:00:03]}  Rf5 {[%clk 0:00:01]} 58. Qa8+ {[%clk 0:00:02]}  Kh7 {[%clk 0:00:02]} 59. Qh1+ {[%clk 0:00:02]}  Kg8 {[%clk 0:00:03]} 60. Qc6 {[%clk 0:00:03]}  Rf8 {[%clk 0:00:03]} 61. Qe6+ {[%clk 0:00:02]}  Kh7 {[%clk 0:00:03]} 62. Qxe3 {[%clk 0:00:03]}  Rc7+ {[%clk 0:00:03]} 63. Kb3 {[%clk 0:00:03]}  Rb8+ {[%clk 0:00:03]} 64. Ka4 {[%clk 0:00:03]}  Rb4+ {[%clk 0:00:02]} 65. Kxa5 {[%clk 0:00:03]}  Rbb7 {[%clk 0:00:03]} 66. Qh3+ {[%clk 0:00:03]}  Kg7 {[%clk 0:00:03]} 67. Qe6 {[%clk 0:00:03]}  Rc5+ {[%clk 0:00:03]} 68. Ka4 {[%clk 0:00:03]}  Rxg5 {[%clk 0:00:02]} 69. Qc6 {[%clk 0:00:03]}  Rf7 {[%clk 0:00:03]} 70. Qc3+ {[%clk 0:00:03]}  Kh6 {[%clk 0:00:03]} 71. Kb3 {[%clk 0:00:04]}  Rf4 {[%clk 0:00:02]} 72. a4 {[%clk 0:00:04]}  Rh5 {[%clk 0:00:02]} 73. Qh8+ {[%clk 0:00:04]}  Kg5 {[%clk 0:00:02]} 74. Qd8+ {[%clk 0:00:05]}  Kg4 {[%clk 0:00:03]} 75. Qd1+ {[%clk 0:00:05]}  Kf5 {[%clk 0:00:03]} 76. Qd5+ {[%clk 0:00:04]}  Kf6 {[%clk 0:00:03]} 77. Qg2 {[%clk 0:00:04]}  Rg5 {[%clk 0:00:03]} 78. Qb2+ {[%clk 0:00:04]}  Kf5 {[%clk 0:00:03]} 79. Ka3 {[%clk 0:00:04]}  Rg3+ {[%clk 0:00:03]} 80. Ka2 {[%clk 0:00:04]}  Rfg4 {[%clk 0:00:03]} 81. Qb5+ {[%clk 0:00:04]}  Kf6 {[%clk 0:00:04]} 82. Qc6+ {[%clk 0:00:04]}  Kg5 {[%clk 0:00:04]} 83. a5 {[%clk 0:00:04]}  Rg2+ {[%clk 0:00:04]} 84. Kb1 {[%clk 0:00:03]}  Rg1+ {[%clk 0:00:04]} 85. Kc2 {[%clk 0:00:04]}  R1g2+ {[%clk 0:00:05]} 86. Kb1 {[%clk 0:00:04]}  R2g3 {[%clk 0:00:04]} 87. a6 {[%clk 0:00:03]}  Rb3+ {[%clk 0:00:04]} 88. Kc1 {[%clk 0:00:04]}  Ra3 {[%clk 0:00:03]} 89. Qc5+ {[%clk 0:00:04]}  Kh6 {[%clk 0:00:02]} 90. Qxa3 {[%clk 0:00:04]} 1-0


[Site "https://www.chess.com"]

[Event "Titled Tuesday Blitz December 06 Early 2022"]
[White "Matinian, Nikita"]
[Black "Raahul V S"]
[WhiteFideId "24129100"]
[BlackFideId "25035525"]
[WhiteElo "2422"]
[BlackElo "2202"]
[Result "1-0"]
[Round "10"]
[TimeControl "180+1"]
[Date "2022.12.07"]
[WhiteClock "0:02:37"]
[BlackClock "0:01:59"]

1. e4 {[%clk 0:03:00]}  e6 {[%clk 0:02:59]} 2. d4 {[%clk 0:03:00]}  d5 {[%clk 0:03:00]} 3. Nc3 {[%clk 0:03:00]}  Nf6 {[%clk 0:02:59]} 4. e5 {[%clk 0:02:59]}  Nfd7 {[%clk 0:02:59]} 5. f4 {[%clk 0:02:59]}  c5 {[%clk 0:02:59]} 6. Nf3 {[%clk 0:03:00]}  Be7 {[%clk 0:02:58]} 7. Be3 {[%clk 0:03:00]}  b6 {[%clk 0:02:58]} 8. h4 {[%clk 0:02:58]}  Nc6 {[%clk 0:02:53]} 9. Bb5 {[%clk 0:02:56]}  Bb7 {[%clk 0:02:53]} 10. h5 {[%clk 0:02:55]}  a6 {[%clk 0:02:50]} 11. Bxc6 {[%clk 0:02:54]}  Bxc6 {[%clk 0:02:51]} 12. Qd2 {[%clk 0:02:49]}  Qc7 {[%clk 0:02:42]} 13. g4 {[%clk 0:02:46]}  b5 {[%clk 0:02:32]} 14. dxc5 {[%clk 0:02:45]}  Nxc5 {[%clk 0:02:28]} 15. Bxc5 {[%clk 0:02:42]}  Bxc5 {[%clk 0:02:26]} 16. Nd4 {[%clk 0:02:43]}  b4 {[%clk 0:02:26]} 17. Nce2 {[%clk 0:02:43]}  Bb5 {[%clk 0:02:22]} 18. O-O-O {[%clk 0:02:41]}  a5 {[%clk 0:01:59]} 19. Nxb5 {[%clk 0:02:39]}  Qb6 {[%clk 0:01:59]} 20. Nd6+ {[%clk 0:02:37]} 1-0


[Site "https://www.chess.com"]

[Event "Titled Tuesday Blitz December 06 Early 2022"]
[White "Mkrtchian, Lilit"]
[Black "Berezin, Viktor"]
[WhiteFideId "13300601"]
[BlackFideId "14107872"]
[WhiteElo "2316"]
[BlackElo "2310"]
[Result "1-0"]
[Round "10"]
[TimeControl "180+1"]
[Date "2022.12.07"]
[WhiteClock "0:00:19"]
[BlackClock "0:00:21"]

1. Nf3 {[%clk 0:03:00]}  Nf6 {[%clk 0:02:59]} 2. g3 {[%clk 0:03:01]}  g6 {[%clk 0:02:57]} 3. Bg2 {[%clk 0:03:01]}  Bg7 {[%clk 0:02:56]} 4. c4 {[%clk 0:03:01]}  O-O {[%clk 0:02:57]} 5. O-O {[%clk 0:03:01]}  d6 {[%clk 0:02:57]} 6. d4 {[%clk 0:03:01]}  Nc6 {[%clk 0:02:58]} 7. Nc3 {[%clk 0:03:01]}  a6 {[%clk 0:02:58]} 8. d5 {[%clk 0:03:01]}  Na5 {[%clk 0:02:57]} 9. b3 {[%clk 0:03:01]}  c5 {[%clk 0:02:58]} 10. dxc6 {[%clk 0:03:02]}  bxc6 {[%clk 0:02:55]} 11. Bg5 {[%clk 0:02:51]}  Rb8 {[%clk 0:02:54]} 12. Qd2 {[%clk 0:02:48]}  Qc7 {[%clk 0:02:31]} 13. Rac1 {[%clk 0:02:47]}  Nb7 {[%clk 0:02:19]} 14. e4 {[%clk 0:02:29]}  e5 {[%clk 0:02:13]} 15. h3 {[%clk 0:02:14]}  Nc5 {[%clk 0:02:11]} 16. Rfe1 {[%clk 0:02:12]}  Kh8 {[%clk 0:02:04]} 17. Rcd1 {[%clk 0:02:11]}  Ng8 {[%clk 0:02:04]} 18. Qxd6 {[%clk 0:02:07]}  Qxd6 {[%clk 0:01:55]} 19. Rxd6 {[%clk 0:02:08]}  Be6 {[%clk 0:01:50]} 20. Rxc6 {[%clk 0:01:56]}  Nd3 {[%clk 0:01:47]} 21. Rd1 {[%clk 0:01:56]}  Nb4 {[%clk 0:01:47]} 22. Rc7 {[%clk 0:01:53]}  Rfc8 {[%clk 0:01:38]} 23. Rxc8 {[%clk 0:01:46]}  Rxc8 {[%clk 0:01:39]} 24. Rd2 {[%clk 0:01:41]}  h6 {[%clk 0:01:31]} 25. Be3 {[%clk 0:01:41]}  g5 {[%clk 0:01:31]} 26. Ne1 {[%clk 0:01:22]}  Ne7 {[%clk 0:01:26]} 27. Nd5 {[%clk 0:01:14]}  Nbc6 {[%clk 0:01:22]} 28. Nc2 {[%clk 0:01:08]}  f5 {[%clk 0:01:17]} 29. Nxe7 {[%clk 0:00:59]}  Nxe7 {[%clk 0:01:18]} 30. Rd6 {[%clk 0:00:59]}  Bf7 {[%clk 0:01:14]} 31. Rxa6 {[%clk 0:00:55]}  f4 {[%clk 0:01:12]} 32. Bb6 {[%clk 0:00:47]}  Nc6 {[%clk 0:01:00]} 33. Bc5 {[%clk 0:00:38]}  Be8 {[%clk 0:00:44]} 34. b4 {[%clk 0:00:29]}  Rd8 {[%clk 0:00:44]} 35. b5 {[%clk 0:00:25]}  Rd1+ {[%clk 0:00:27]} 36. Kh2 {[%clk 0:00:25]}  Nd4 {[%clk 0:00:28]} 37. Nxd4 {[%clk 0:00:20]}  exd4 {[%clk 0:00:27]} 38. Ra8 {[%clk 0:00:20]}  Kh7 {[%clk 0:00:23]} 39. Rxe8 {[%clk 0:00:20]}  d3 {[%clk 0:00:23]} 40. e5 {[%clk 0:00:19]}  d2 {[%clk 0:00:21]} 41. Be4# {[%clk 0:00:19]} 1-0


[Site "https://www.chess.com"]

[Event "Titled Tuesday Blitz December 06 Early 2022"]
[White "Molina, Roberto Junio Brito"]
[Black "Durarbayli, Vasif"]
[WhiteFideId "2109450"]
[BlackFideId "13402935"]
[WhiteElo "2376"]
[BlackElo "2576"]
[Result "1-0"]
[Round "10"]
[TimeControl "180+1"]
[Date "2022.12.06"]
[WhiteClock "0:01:13"]
[BlackClock "0:00:02"]

1. d4 {[%clk 0:03:00]}  g6 {[%clk 0:02:58]} 2. e4 {[%clk 0:03:00]}  Bg7 {[%clk 0:02:59]} 3. Nc3 {[%clk 0:03:00]}  d6 {[%clk 0:02:59]} 4. Be3 {[%clk 0:03:00]}  a6 {[%clk 0:03:00]} 5. h4 {[%clk 0:02:59]}  Nf6 {[%clk 0:02:56]} 6. Qd2 {[%clk 0:02:58]}  Ng4 {[%clk 0:02:50]} 7. Bf4 {[%clk 0:02:55]}  e5 {[%clk 0:02:49]} 8. dxe5 {[%clk 0:02:53]}  dxe5 {[%clk 0:02:47]} 9. Qxd8+ {[%clk 0:02:52]}  Kxd8 {[%clk 0:02:48]} 10. Bg5+ {[%clk 0:02:52]}  f6 {[%clk 0:02:44]} 11. Bd2 {[%clk 0:02:49]}  h5 {[%clk 0:02:36]} 12. f3 {[%clk 0:02:47]}  Nh6 {[%clk 0:02:35]} 13. O-O-O {[%clk 0:02:47]}  Bd7 {[%clk 0:02:25]} 14. Be3 {[%clk 0:02:44]}  Nf7 {[%clk 0:02:23]} 15. Nd5 {[%clk 0:02:38]}  Nc6 {[%clk 0:02:05]} 16. a3 {[%clk 0:02:23]}  Nd6 {[%clk 0:01:34]} 17. Ne2 {[%clk 0:02:12]}  Nc4 {[%clk 0:01:23]} 18. Bf2 {[%clk 0:02:11]}  Bh6+ {[%clk 0:01:19]} 19. Kb1 {[%clk 0:02:11]}  Nd2+ {[%clk 0:01:11]} 20. Ka1 {[%clk 0:02:07]}  Rf8 {[%clk 0:01:08]} 21. Be3 {[%clk 0:01:57]}  Bxe3 {[%clk 0:01:06]} 22. Nxe3 {[%clk 0:01:57]}  Nxf1 {[%clk 0:01:03]} 23. Rhxf1 {[%clk 0:01:58]}  Ke8 {[%clk 0:00:46]} 24. Nd5 {[%clk 0:01:43]}  Rc8 {[%clk 0:00:45]} 25. Rd2 {[%clk 0:01:40]}  Be6 {[%clk 0:00:44]} 26. Rfd1 {[%clk 0:01:40]}  Kf7 {[%clk 0:00:41]} 27. Kb1 {[%clk 0:01:38]}  Rfd8 {[%clk 0:00:39]} 28. Kc1 {[%clk 0:01:36]}  Rd7 {[%clk 0:00:37]} 29. Ne3 {[%clk 0:01:36]}  Rxd2 {[%clk 0:00:32]} 30. Rxd2 {[%clk 0:01:37]}  Rg8 {[%clk 0:00:32]} 31. b4 {[%clk 0:01:33]}  Ne7 {[%clk 0:00:27]} 32. c4 {[%clk 0:01:31]}  g5 {[%clk 0:00:25]} 33. hxg5 {[%clk 0:01:30]}  Rxg5 {[%clk 0:00:26]} 34. Nc3 {[%clk 0:01:30]}  h4 {[%clk 0:00:23]} 35. Kd1 {[%clk 0:01:30]}  h3 {[%clk 0:00:18]} 36. g4 {[%clk 0:01:30]}  Rg8 {[%clk 0:00:15]} 37. Ke1 {[%clk 0:01:30]}  Ng6 {[%clk 0:00:15]} 38. Kf2 {[%clk 0:01:30]}  Rh8 {[%clk 0:00:16]} 39. Kg3 {[%clk 0:01:30]}  Nf4 {[%clk 0:00:16]} 40. Kh2 {[%clk 0:01:28]}  c6 {[%clk 0:00:16]} 41. c5 {[%clk 0:01:27]}  a5 {[%clk 0:00:15]} 42. b5 {[%clk 0:01:26]}  cxb5 {[%clk 0:00:13]} 43. Nxb5 {[%clk 0:01:27]}  Kg6 {[%clk 0:00:14]} 44. Nd6 {[%clk 0:01:27]}  Rh7 {[%clk 0:00:14]} 45. Rb2 {[%clk 0:01:23]}  Rc7 {[%clk 0:00:14]} 46. Nxb7 {[%clk 0:01:20]}  Nd3 {[%clk 0:00:06]} 47. Rb6 {[%clk 0:01:19]}  Bd7 {[%clk 0:00:03]} 48. Nd5 {[%clk 0:01:18]}  Rc6 {[%clk 0:00:03]} 49. Ne7+ {[%clk 0:01:17]}  Kg5 {[%clk 0:00:02]} 50. Nxc6 {[%clk 0:01:17]}  Kf4 {[%clk 0:00:02]} 51. Ne7 {[%clk 0:01:13]} 1-0


[Site "https://www.chess.com"]